{"text_format":"2","workbook":"xlsx","n_sheets":2,"sheets":["VSE TAG","Data"],"not_rendered":{"charts":0,"images":1,"macros":0,"external_links":0,"defined_names":0,"comments":0,"pivot_tables":0},"unopened":[],"bounds":{"document_bytes":16777216,"sheet_cells":100000,"run_cost":"one","rows_first":2000,"rows_last":500,"rows_between":2000,"halvings":0,"cell_chars":16384,"cell_head_chars":4096},"cells_cut":0,"cells_raw":0,"read":"whole","date_system":"1900"}

{"sheet":"VSE TAG","index":0,"n_rows":199,"n_cols":61,"rows_kept":199,"cut":false,"hidden":false,"merged":[[4,13,4,34],[5,13,5,34],[6,13,6,22],[6,26,6,34],[17,27,17,31],[19,7,19,32],[20,7,20,25],[20,28,20,32],[40,18,40,21],[40,31,40,34],[31,31,31,36],[32,31,32,36],[33,31,33,35],[22,12,22,32],[16,36,16,60],[19,38,19,60],[21,22,21,60],[20,36,20,39],[16,8,16,17],[17,8,17,17],[22,46,22,60],[20,43,20,60],[21,7,21,17],[16,24,16,32],[33,48,33,55],[33,36,33,37],[31,56,31,59],[32,56,32,59],[33,56,33,59],[28,14,28,38],[28,46,28,60],[29,46,29,60],[47,56,47,58],[40,44,40,48],[31,48,31,55],[32,48,32,55],[75,44,75,60],[76,44,76,60],[69,7,69,20],[69,23,69,35],[69,45,69,60],[70,45,70,60],[37,35,37,39],[68,45,68,51],[68,55,68,60],[60,47,60,60],[56,46,56,50],[58,50,58,57],[52,26,52,35],[54,20,54,35],[52,36,52,37],[52,52,52,57],[53,52,53,57],[54,52,54,57],[50,43,50,59],[44,14,44,38],[45,37,45,38],[44,46,44,60],[45,46,45,60],[71,7,71,22],[79,30,79,34],[79,45,79,57],[80,27,80,33],[80,45,80,57],[81,28,81,33],[81,45,81,57],[76,3,76,33],[78,27,78,34],[78,45,78,57],[94,27,94,33],[94,45,94,57],[95,45,95,57],[96,45,96,57],[99,17,99,24],[93,27,93,34],[93,45,93,57],[89,13,89,36],[89,44,89,60],[90,44,90,60],[100,17,100,24],[104,44,104,59],[110,13,110,36],[110,44,110,60],[111,44,111,60],[116,45,116,57],[119,27,119,33],[120,27,120,33],[121,27,121,33],[121,40,121,45],[10,38,10,60],[11,43,11,60],[12,22,12,60],[14,7,14,25],[14,28,14,32],[11,36,11,39],[12,7,12,17],[10,7,10,32],[15,14,15,32],[11,28,11,32],[11,7,11,25],[14,39,14,60],[15,7,15,11],[71,25,71,28],[71,29,71,31],[71,32,71,35],[71,38,71,60],[122,27,122,33],[122,40,122,45],[134,55,134,60],[113,27,113,33],[166,26,168,60],[113,45,113,57],[114,27,114,33],[114,45,114,57],[115,45,115,57],[141,2,147,60],[134,45,134,51],[137,38,137,60],[135,23,135,35],[137,32,137,35],[137,29,137,31],[137,25,137,28],[137,7,137,22],[135,7,135,20],[136,45,136,60],[135,45,135,60],[180,34,182,60],[149,28,151,33],[149,3,151,6],[149,34,151,60],[154,26,156,60],[157,26,159,45],[157,50,157,60],[159,46,159,60],[160,26,162,60],[149,7,151,27],[180,7,182,26],[177,3,178,60],[172,20,176,60],[169,39,169,44],[170,39,170,44],[171,39,171,44],[163,26,165,60]]}
[]
[]
[null,"Technisches Anschlussgesuch (TAG)"]
[]
[null,null,null,"Netzbetreiberin (VNB)",{"$nulls":9},{"$f":"IF(ISBLANK(Data!D5),\"\",Data!D5)","v":""}]
[null,null,null,"VNB Objekt-Nr",{"$nulls":9},{"$f":"IF(ISBLANK(Data!D6),\"\",Data!D6)","v":""}]
[null,null,null,"Meldungs-Nr. VNB",{"$nulls":9},{"$f":"IF(ISBLANK(Data!D7),\"\",Data!D7)","v":""},{"$nulls":10},"/",null,{"$f":"IF(ISBLANK(Data!D8),\"\",Data!D8)","v":""}]
[]
[null,"Allgemeine Angaben"]
[null,null,null,"Name und Anschrift des Eigentümers (Betriebsinhaber)",{"$nulls":43},"Sprache",{"$nulls":5},"de",null,null,"fr",null,null,"it"]
[null,null,null,"Name",null,null,null,{"$f":"IF(ISBLANK(Data!D12),\"\",Data!D12)","v":""},{"$nulls":25},"Vorname",{"$nulls":4},{"$f":"IF(ISBLANK(Data!D13),\"\",Data!D13)","v":""}]
[null,null,null,"Strasse",null,null,null,{"$f":"IF(ISBLANK(Data!D14),\"\",Data!D14)","v":""},{"$nulls":18},"Nr.",null,{"$f":"IF(ISBLANK(Data!D15),\"\",Data!D15)","v":""},{"$nulls":4},"PLZ",null,null,{"$f":"IF(ISBLANK(Data!D16),\"\",Data!D16)","v":""},null,null,null,"Ort",null,null,{"$f":"IF(ISBLANK(Data!D17),\"\",Data!D17)","v":""}]
[null,null,null,"Tel.",null,null,null,{"$f":"IF(ISBLANK(Data!D18),\"\",Data!D18)","v":""},{"$nulls":10},"E-Mail",null,null,null,{"$f":"IF(ISBLANK(Data!D19),\"\",Data!D19)","v":""}]
[null,null,null,"Standort der Anlage"]
[null,null,null,"Strasse",null,null,null,{"$f":"IF(ISBLANK(Data!D20),\"\",Data!D20)","v":""},{"$nulls":18},"Nr.",null,{"$f":"IF(ISBLANK(Data!D21),\"\",Data!D21)","v":""},{"$nulls":4},"Gebäudeart",{"$nulls":5},{"$f":"IF(ISBLANK(Data!D24),\"\",Data!D24)","v":""}]
[null,null,null,"PLZ",null,null,null,{"$f":"IF(ISBLANK(Data!D22),\"\",Data!D22)","v":""},{"$nulls":4},"Ort",null,{"$f":"IF(ISBLANK(Data!D23),\"\",Data!D23)","v":""},{"$nulls":20},"neu",{"$nulls":4},"bestehend"]
[null,null,null,"Gemeinde",{"$nulls":4},{"$f":"IF(ISBLANK(Data!D25),\"\",Data!D25)","v":""},{"$nulls":9},"Parzellen Nr.",{"$nulls":5},{"$f":"IF(ISBLANK(Data!D26),\"\",Data!D26)","v":""},{"$nulls":11},{"$f":"IF(ISBLANK(Data!D30),\"\",Data!D30)","v":""}]
[null,null,null,"Zähler-Nr.",{"$nulls":4},{"$f":"IF(ISBLANK(Data!D31),\"\",Data!D31)","v":""},{"$nulls":9},"Netzanschluss (HAK)",{"$nulls":8},{"$f":"IF(ISBLANK(Data!D32),\"\",Data!D32)","v":""},{"$nulls":4},"A",null,null,"neu",{"$nulls":4},"bestehend"]
[null,null,null,"Name und Anschrift des einreichenden Unternehmens",{"$nulls":43},"Sprache",{"$nulls":5},"de",null,null,"fr",null,null,"it"]
[null,null,null,"Name",null,null,null,{"$f":"IF(ISBLANK(Data!D38),\"\",Data!D38)","v":""},{"$nulls":25},"Vorname",{"$nulls":4},{"$f":"IF(ISBLANK(Data!D39),\"\",Data!D39)","v":""}]
[null,null,null,"Strasse",null,null,null,{"$f":"IF(ISBLANK(Data!D40),\"\",Data!D40)","v":""},{"$nulls":18},"Nr.",null,{"$f":"IF(ISBLANK(Data!D41),\"\",Data!D41)","v":""},{"$nulls":4},"PLZ",null,null,{"$f":"IF(ISBLANK(Data!D42),\"\",Data!D42)","v":""},null,null,null,"Ort",null,null,{"$f":"IF(ISBLANK(Data!D43),\"\",Data!D43)","v":""}]
[null,null,null,"Tel.",null,null,null,{"$f":"IF(ISBLANK(Data!D44),\"\",Data!D44)","v":""},{"$nulls":10},"E-Mail",null,null,null,{"$f":"IF(ISBLANK(Data!D45),\"\",Data!D45)","v":""}]
[null,null,null,"Sachbearbeiter/-in",{"$nulls":8},{"$f":"IF(ISBLANK(Data!D46),\"\",Data!D46)","v":""},{"$nulls":20},"Voraussichtliche Inbetriebnahme",{"$nulls":12},{"$f":"IF(ISBLANK(Data!D47),\"\",Data!D47)","v":""}]
[null,null,null,"Anschlussgesuch für folgende Geräte"]
[{"$nulls":4},"Elektrische Wärme/WP",{"$nulls":12},"EEA",{"$nulls":4},"Anlage mit Netzrückwirkung",{"$nulls":13},"Energiespeicher",{"$nulls":9},"Ladestation Elektrofahrzeuge"]
[]
[null,"Elektrische Wärme / Wärmepumpe (WP)"]
[{"$nulls":5},"Neuanlage",{"$nulls":7},"Änderung / Erweiterung",{"$nulls":25},"Kantonale Genehmigung vorhanden",{"$nulls":16},"Ja"]
[null,null,null,"Art des Geräts / Anlage",{"$nulls":10},{"$f":"IF(ISBLANK(Data!D56),\"\",Data!D56)","v":""},{"$nulls":24},"Gerätehersteller",{"$nulls":6},{"$f":"IF(ISBLANK(Data!D57),\"\",Data!D57)","v":""}]
[null,null,null,"Art des Betriebs",{"$nulls":11},"monovalent",{"$nulls":7},"bivalent",{"$nulls":15},"Gerätetyp",{"$nulls":6},{"$f":"IF(ISBLANK(Data!D58),\"\",Data!D58)","v":""}]
[null,null,null,"Gerätedaten Seite AC"]
[null,null,null,"Anschluss",{"$nulls":11},"3x400V",{"$nulls":4},"Nennstrom Gerät",{"$nulls":10},{"$f":"IF(ISBLANK(Data!D62),\"\",Data!D62)","v":""},{"$nulls":5},"A",null,"Nennleistung Gerät",{"$nulls":8},{"$f":"IF(ISBLANK(Data!D63),\"\",Data!D63)","v":""},{"$nulls":7},"kW/kVA"]
[{"$nulls":15},"1x230V",{"$nulls":4},"Anlaufstrom Gerät (10ms)",{"$nulls":10},{"$f":"IF(ISBLANK(Data!D65),\"\",Data!D65)","v":""},{"$nulls":5},"A",null,"Nennleistung Total",{"$nulls":8},{"$f":"IF(ISBLANK(Data!D66),\"\",Data!D66)","v":""},{"$nulls":7},"kW/kVA"]
[{"$nulls":15},"Andere",{"$nulls":4},"Anzahl Geräte",{"$nulls":10},{"$f":"IF(ISBLANK(Data!D68),\"\",Data!D68)","v":""},{"$nulls":4},"Stk.",null,null,"Spitzenleistung Total",{"$nulls":8},{"$f":"IF(ISBLANK(Data!D69),\"\",Data!D69)","v":""},{"$nulls":7},"kW/kVA"]
[null,null,null,"Spezifikationen"]
[null,null,null,"Anlaufart",{"$nulls":11},"Direktanlauf",{"$nulls":6},"Widerstandsanlasser",{"$nulls":9},"Inverter",{"$nulls":4},"Frequenzumformer",{"$nulls":9},"Sanftanlasser"]
[]
[null,null,null,"Elektrische Zusatzheizung",{"$nulls":11},"Nein",null,null,null,"Ja",{"$nulls":6},"Wenn ja: Leistung",{"$nulls":7},"",{"$f":"IF(ISBLANK(Data!D75),\"\",Data!D75)","v":""},{"$nulls":4},"kW"]
[null,null,null,"Wärmepumpentyp",{"$nulls":11},"Sole / Wasser",{"$nulls":11},"Wasser / Wasser",{"$nulls":12},"Luft / Luft",{"$nulls":8},"Luft / Wasser"]
[null,null,null,"Art der Wassererwärmung",{"$nulls":11},"elektrisch",{"$nulls":11},"Wärmepumpenboiler",{"$nulls":12},"Wärmepumpe",{"$nulls":8},"Sonnenkollektoren"]
[null,null,null,"Wärmewasserspeicher",{"$nulls":10},"Anzahl",null,null,null,{"$f":"IF(ISBLANK(Data!D86),\"\",Data!D86)","v":""},null,null,null,"Stk.",{"$nulls":4},"Inhalt",null,null,null,{"$f":"IF(ISBLANK(Data!D87),\"\",Data!D87)","v":""},null,null,null,"l",null,"Gesamtleistung",{"$nulls":6},{"$f":"IF(ISBLANK(Data!D88),\"\",Data!D88)","v":""},{"$nulls":4},"kW"]
[]
[null,"Energieerzeugungsanlagen (EEA)"]
[{"$nulls":5},"Neuanlage",{"$nulls":7},"Änderung / Erweiterung"]
[null,null,null,"Art des Geräts / Anlage",{"$nulls":10},{"$f":"IF(ISBLANK(Data!D91),\"\",Data!D91)","v":""},{"$nulls":24},"Gerätehersteller",{"$nulls":6},{"$f":"IF(ISBLANK(Data!D92),\"\",Data!D92)","v":""}]
[null,null,null,"Art des Betriebs",{"$nulls":9},"Netzverbund",{"$nulls":7},"Inselbetrieb",{"$nulls":7},"Notstromanlage",{"$nulls":9},"Gerätetyp",{"$nulls":6},{"$f":"IF(ISBLANK(Data!D96),\"\",Data!D96)","v":""}]
[null,null,null,"Eigenverbrauch",{"$nulls":29},"Nein",null,null,null,"Ja",null,"Wenn ja",{"$nulls":7},"einzel",{"$nulls":5},"mehrere"]
[null,null,null,"Zusammenschluss zum Eigenverbrauch (ZEV)",{"$nulls":29},"Nein",null,null,null,"Ja",null,"Wenn ja: Vorsicherung VNB ZEV-Zähler",{"$nulls":16},{"$f":"IF(ISBLANK(Data!D103),\"\",Data!D103)","v":""},null,null,"A"]
[null,null,null,"Notstromanlage zeitweise mit Netz verbunden",{"$nulls":29},"Nein",null,null,null,"Ja"]
[null,null,null,"Umschaltung Netzverbund / Notstrom und umgekehrt mit Netzunterbruch",{"$nulls":29},"Nein",null,null,null,"Ja"]
[null,null,null,"Teilnahme an der Systemdienstleistung",{"$nulls":29},"Nein",null,null,null,"Ja",null,"Anbieter:",null,null,null,{"$f":"IF(ISBLANK(Data!D110),\"\",Data!D110)","v":""}]
[null,null,null,"Gerätedaten Seite AC"]
[null,null,null,"Anschluss",{"$nulls":11},"3x400V",{"$nulls":4},"Anzahl Geräte",{"$nulls":5},{"$f":"IF(ISBLANK(Data!D112),\"\",Data!D112)","v":""},{"$nulls":9},"Stk.",null,null,"Nennleistung Gerät",{"$nulls":12},{"$f":"IF(ISBLANK(Data!D113),\"\",Data!D113)","v":""},{"$nulls":6},"kVA"]
[{"$nulls":15},"1x230V",{"$nulls":23},"Nennleistung Total",{"$nulls":12},{"$f":"IF(ISBLANK(Data!D115),\"\",Data!D115)","v":""},{"$nulls":6},"kVA"]
[{"$nulls":15},"Andere",{"$nulls":4},{"$f":"IF(ISBLANK(Data!D117),\"\",Data!D117)","v":""},{"$nulls":18},"*Max. Leistungsabgabe ans Netz",{"$nulls":12},{"$f":"IF(ISBLANK(Data!D118),\"\",Data!D118)","v":""},{"$nulls":6},"kVA"]
[{"$nulls":14},"(*Gesamtsystem inkl. bereits installierter Leistung und allfällig installiertem Energiespeicher mit Rückspeisung in das Verteilnetz)"]
[null,null,null,"Einspeisebegrenzung",{"$nulls":11},"Nein",{"$nulls":4},"Ja",{"$nulls":18},"cos ɸ im Betrieb",{"$nulls":6},{"$f":"IF(ISBLANK(Data!D121),\"\",Data!D121)","v":""}]
[null,null,null,"Photovoltaik: Leistung DC (bei einem Zubau die Angaben der Erweiterung) / Datenblätter (WR und Module) müssen nicht eingereicht werden."]
[{"$nulls":44},"Leistung Total",{"$nulls":5},{"$f":"IF(ISBLANK(Data!D122),\"\",Data!D122)","v":""},{"$nulls":8},"kWp"]
[null,null,null,"Energieträger"]
[{"$nulls":10},"Sonne (PV)",{"$nulls":6},"Wasser",{"$nulls":5},"Wind",{"$nulls":4},"WWK Anlage / BHKW",{"$nulls":10},"Biogas",{"$nulls":4},"Andere",null,null,{"$f":"IF(ISBLANK(Data!D129),\"\",Data!D129)","v":""}]
[]
[]
[{"$nulls":8},"VSE V-2019-de",{"$nulls":51},"Seite 1 von 3"]
[]
[]
[null,"Technisches Anschlussgesuch (TAG) - Fortsetzung"]
[]
[null,null,null,"Einreichendes Unternehmen",{"$nulls":32},"Meldungs-Nr. VNB",{"$nulls":8},{"$f":"IF(ISBLANK(Data!D7),\"\",Data!D7)","v":""},{"$nulls":7},"/",null,{"$f":"IF(ISBLANK(Data!D8),\"\",Data!D8)","v":""}]
[null,null,null,"Name",null,null,null,{"$f":"IF(ISBLANK(Data!D38),\"\",Data!D38)","v":""},{"$nulls":13},"Ort",null,{"$f":"IF(ISBLANK(Data!D43),\"\",Data!D43)","v":""},{"$nulls":12},"VNB Objekt-Nr.",{"$nulls":8},{"$f":"IF(ISBLANK(Data!D6),\"\",Data!D6)","v":""}]
[null,null,null,"Standort der Anlage",{"$nulls":32},"Netzbetreiberin (VNB)",{"$nulls":8},{"$f":"IF(ISBLANK(Data!D5),\"\",Data!D5)","v":""}]
[null,null,null,"Strasse",null,null,null,{"$f":"IF(ISBLANK(Data!D20),\"\",Data!D20)","v":""},{"$nulls":15},"Nr.",null,{"$f":"IF(ISBLANK(Data!D21),\"\",Data!D21)","v":""},null,null,null,"PLZ",null,null,{"$f":"IF(ISBLANK(Data!D22),\"\",Data!D22)","v":""},null,null,null,"Ort",null,{"$f":"IF(ISBLANK(Data!D23),\"\",Data!D23)","v":""}]
[]
[null,"Anlagen mit Netzrückwirkungen"]
[{"$nulls":5},"Neuanlage",{"$nulls":7},"Änderung / Erweiterung"]
[null,null,"Art des Gerätes / Anlage",{"$nulls":34},"Gerätehersteller",{"$nulls":6},{"$f":"IF(ISBLANK(Data!D133),\"\",Data!D133)","v":""}]
[null,null,null,{"$f":"IF(ISBLANK(Data!D132),\"\",Data!D132)","v":""},{"$nulls":33},"Gerätetyp",{"$nulls":6},{"$f":"IF(ISBLANK(Data!D134),\"\",Data!D134)","v":""}]
[null,null,"Gerätedaten Seite AC"]
[null,null,"Anschluss",{"$nulls":12},"3x400V",{"$nulls":4},"Nennstrom Gerät",{"$nulls":6},{"$f":"IF(ISBLANK(Data!D136),\"\",Data!D136)","v":""},{"$nulls":7},"A",null,"Nennleistung Gerät",{"$nulls":7},{"$f":"IF(ISBLANK(Data!D137),\"\",Data!D137)","v":""},{"$nulls":13},"kVA"]
[{"$nulls":15},"1x230V",{"$nulls":4},"Anlaufstrom Gerät (10ms)",{"$nulls":9},{"$f":"IF(ISBLANK(Data!D139),\"\",Data!D139)","v":""},{"$nulls":4},"A",null,"Nennleistung Total",{"$nulls":7},{"$f":"IF(ISBLANK(Data!D140),\"\",Data!D140)","v":""},{"$nulls":13},"kVA"]
[{"$nulls":15},"Andere",{"$nulls":4},"Anzahl Geräte",{"$nulls":6},{"$f":"IF(ISBLANK(Data!D142),\"\",Data!D142)","v":""},{"$nulls":7},"Stk.",null,"Spitzenleistung Total",{"$nulls":7},{"$f":"IF(ISBLANK(Data!D143),\"\",Data!D143)","v":""},{"$nulls":13},"kVA"]
[{"$nulls":20},"Anz. Anläufe pro Min.",{"$nulls":7},{"$f":"IF(ISBLANK(Data!D144),\"\",Data!D144)","v":""},{"$nulls":8},"cos ɸ im Betrieb",{"$nulls":7},{"$f":"IF(ISBLANK(Data!D145),\"\",Data!D145)","v":""}]
[null,null,"Spezifikationen"]
[null,null,"Anlaufart",{"$nulls":8},"Direktanlauf",{"$nulls":7},"Widerstandsanlasser",{"$nulls":10},"Inverter",{"$nulls":4},"Sanftanlasser",{"$nulls":6},"Frequenzumformer",{"$nulls":9},"weitere Anlaufhilfen"]
[null,null,"Blindstromkompensation"]
[{"$nulls":15},"Ohne",{"$nulls":4},"Bestehend",{"$nulls":6},"Neuanlage"]
[]
[null,"Energiespeicher"]
[{"$nulls":5},"Neuanlage",{"$nulls":7},"Änderung / Erweiterung"]
[null,null,"Art des Gerätes / Anlage",{"$nulls":10},{"$f":"IF(ISBLANK(Data!D157),\"\",Data!D157)","v":""},{"$nulls":23},"Gerätehersteller",{"$nulls":6},{"$f":"IF(ISBLANK(Data!D158),\"\",Data!D158)","v":""}]
[null,null,"Art des Betriebes",{"$nulls":10},"Netzverbund",{"$nulls":7},"Inselbetrieb",{"$nulls":6},"Notstromfähig",{"$nulls":8},"Gerätetyp",{"$nulls":6},{"$f":"IF(ISBLANK(Data!D159),\"\",Data!D159)","v":""}]
[null,null,"Notstromanlage zeitweise mit Netz verbunden",{"$nulls":21},"Nein",{"$nulls":4},"Ja",{"$nulls":7},"Umschaltung Netzverbund / Notstrom",{"$nulls":16},"Nein",null,null,null,"Ja"]
[null,null,"Gerätedaten Seite AC"]
[null,null,"Anschluss",{"$nulls":12},"3x400V",{"$nulls":4},"Nennstrom Gerät",{"$nulls":6},{"$f":"IF(ISBLANK(Data!D168),\"\",Data!D168)","v":""},{"$nulls":7},"A",null,"Nennleistung Gerät",{"$nulls":7},{"$f":"IF(ISBLANK(Data!D169),\"\",Data!D169)","v":""},{"$nulls":13},"kVA"]
[{"$nulls":15},"1x230V",{"$nulls":4},"Anzahl Geräte",{"$nulls":6},{"$f":"IF(ISBLANK(Data!D171),\"\",Data!D171)","v":""},{"$nulls":7},"Stk.",null,"Nennleistung Total",{"$nulls":7},{"$f":"IF(ISBLANK(Data!D172),\"\",Data!D172)","v":""},{"$nulls":13},"kVA"]
[{"$nulls":15},"nur DC",{"$nulls":21},"Spitzenleistung Total",{"$nulls":7},{"$f":"IF(ISBLANK(Data!D174),\"\",Data!D174)","v":""},{"$nulls":13},"kVA"]
[{"$nulls":37},"cos ɸ im Betrieb",{"$nulls":7},{"$f":"IF(ISBLANK(Data!D175),\"\",Data!D175)","v":""}]
[null,null,"Spezifikationen"]
[null,null,"Integration des Energiespeichers",{"$nulls":17},"AC (im AC Teil der Installation)",{"$nulls":17},"DC (im DC Teil der Installation)"]
[null,null,"Elektrische Leistung (Systemleistung)",{"$nulls":14},{"$f":"IF(ISBLANK(Data!D178),\"\",Data!D178)","v":""},{"$nulls":7},"kW"]
[null,null,"Speicherkapazität",{"$nulls":14},{"$f":"IF(ISBLANK(Data!D179),\"\",Data!D179)","v":""},{"$nulls":7},"kWh"]
[null,null,"Betriebsart des Speichers",{"$nulls":17},"keine Ladung des Speichers aus dem Verteilnetz"]
[{"$nulls":20},"keine Entladung des Speichers ins Verteilnetz"]
[{"$nulls":20},"Regelbare Leistung durch",{"$nulls":15},"VNB",{"$nulls":4},"Betreiber"]
[{"$nulls":20},"Teilnahme an der Systemdienstleistung",{"$nulls":19},"Anbieter",null,null,null,{"$f":"IF(ISBLANK(Data!D186),\"\",Data!D186)","v":""}]
[{"$nulls":20},"Schnittstelle Speicher zum VNB vorhanden"]
[{"$nulls":20},"andere Betriebsart -> gemäss Beilage"]
[]
[null,"Ladestation für Elektrofahrzeuge"]
[{"$nulls":5},"Neuanlage",{"$nulls":7},"Änderung / Erweiterung"]
[null,null,"Art des Gerätes / Anlage",{"$nulls":10},{"$f":"IF(ISBLANK(Data!D191),\"\",Data!D191)","v":""},{"$nulls":23},"Gerätehersteller",{"$nulls":6},{"$f":"IF(ISBLANK(Data!D192),\"\",Data!D192)","v":""}]
[null,null,"Art des Betriebes",{"$nulls":12},"Ladung Kabel",{"$nulls":8},"Ladung induktiv",{"$nulls":12},"Gerätetyp",{"$nulls":6},{"$f":"IF(ISBLANK(Data!D193),\"\",Data!D193)","v":""}]
[null,null,"Gerätedaten Seite AC"]
[null,null,"Anschluss",{"$nulls":12},"3x400V",{"$nulls":4},"Nennstrom Gerät",{"$nulls":6},{"$f":"IF(ISBLANK(Data!D197),\"\",Data!D197)","v":""},{"$nulls":7},"A",null,"Nennleistung Gerät",{"$nulls":7},{"$f":"IF(ISBLANK(Data!D198),\"\",Data!D198)","v":""},{"$nulls":13},"kVA"]
[{"$nulls":15},"1x230V",{"$nulls":4},"Anzahl Geräte",{"$nulls":6},{"$f":"IF(ISBLANK(Data!D200),\"\",Data!D200)","v":""},{"$nulls":7},"Stk.",null,"Nennleistung Total",{"$nulls":7},{"$f":"IF(ISBLANK(Data!D201),\"\",Data!D201)","v":""},{"$nulls":13},"kVA"]
[{"$nulls":37},"Spitzenleistung Total",{"$nulls":7},{"$f":"IF(ISBLANK(Data!D202),\"\",Data!D202)","v":""},{"$nulls":13},"kVA"]
[{"$nulls":37},"cos ɸ im Betrieb",{"$nulls":7},{"$f":"IF(ISBLANK(Data!D203),\"\",Data!D203)","v":""}]
[null,null,"Spezifikationen"]
[{"$nulls":16},"AC Ladung des Fahrzeuges",{"$nulls":22},"DC Ladung des Fahrzeuges"]
[{"$nulls":14},"Max. Netzentnahmeleistung",{"$nulls":12},{"$f":"IF(ISBLANK(Data!D206),\"\",Data!D206)","v":""},{"$nulls":7},"kVA"]
[{"$nulls":14},"Max. Netzeinspeiseleistung",{"$nulls":12},{"$f":"IF(ISBLANK(Data!D207),\"\",Data!D207)","v":""},{"$nulls":7},"kVA"]
[{"$nulls":14},"Regelbare Leistung durch VNB",{"$nulls":12},{"$f":"IF(ISBLANK(Data!D208),\"\",Data!D208)","v":""},{"$nulls":7},"kVA",null,null,"bis",null,{"$f":"IF(ISBLANK(Data!D209),\"\",Data!D209)","v":""},{"$nulls":5},"kVA"]
[{"$nulls":14},"Regelbare Leistung durch Betreiber",{"$nulls":12},{"$f":"IF(ISBLANK(Data!D210),\"\",Data!D210)","v":""},{"$nulls":7},"kVA",null,null,"bis",null,{"$f":"IF(ISBLANK(Data!D211),\"\",Data!D211)","v":""},{"$nulls":5},"kVA"]
[{"$nulls":14},"Wirkleistung steuerbar",{"$nulls":18},"Nein",null,null,null,"Ja"]
[{"$nulls":14},"Schnittstelle Ladesäule zu VNB vorhanden",{"$nulls":18},"Nein",null,null,null,"Ja"]
[]
[]
[]
[]
[{"$nulls":8},"VSE V-2019-de",{"$nulls":51},"Seite 2 von 3"]
[]
[]
[null,"Technisches Anschlussgesuch (TAG) - Fortsetzung"]
[]
[null,null,null,"Einreichendes Unternehmen",{"$nulls":32},"Meldungs-Nr. VNB",{"$nulls":8},{"$f":"IF(ISBLANK(Data!D7),\"\",Data!D7)","v":""},{"$nulls":7},"/",null,{"$f":"IF(ISBLANK(Data!D8),\"\",Data!D8)","v":""}]
[null,null,null,"Name",null,null,null,{"$f":"IF(ISBLANK(Data!D38),\"\",Data!D38)","v":""},{"$nulls":13},"Ort",null,{"$f":"IF(ISBLANK(Data!D43),\"\",Data!D43)","v":""},{"$nulls":12},"VNB Objekt-Nr.",{"$nulls":8},{"$f":"IF(ISBLANK(Data!D6),\"\",Data!D6)","v":""}]
[null,null,null,"Standort der Anlage",{"$nulls":32},"Netzbetreiberin (VNB)",{"$nulls":8},{"$f":"IF(ISBLANK(Data!D5),\"\",Data!D5)","v":""}]
[null,null,null,"Strasse",null,null,null,{"$f":"IF(ISBLANK(Data!D20),\"\",Data!D20)","v":""},{"$nulls":15},"Nr.",null,{"$f":"IF(ISBLANK(Data!D21),\"\",Data!D21)","v":""},null,null,null,"PLZ",null,null,{"$f":"IF(ISBLANK(Data!D22),\"\",Data!D22)","v":""},null,null,null,"Ort",null,{"$f":"IF(ISBLANK(Data!D23),\"\",Data!D23)","v":""}]
[]
[null,"Weitere allgemeine Angaben"]
[null,null,null,"Bemerkungen des einreichenden Unternehmens"]
[null,null,{"$f":"IF(ISBLANK(Data!D216),\"\",Data!D216)","v":""}]
[]
[]
[]
[]
[]
[]
[null,null,null,"Unterschrift des einreichenden Unternehmens"]
[null,null,null,"Datum",null,null,null,{"$f":"IF(ISBLANK(Data!D217),\"\",Data!D217)","v":""},{"$nulls":20},"Unterschrift",{"$nulls":5},{"$f":"IF(ISBLANK(Data!D218),\"\",Data!D218)","v":""}]
[]
[]
[]
[null,"Entscheid VNB"]
[null,null,"Elektrische Wärme / Wp",{"$nulls":17},"Bemerkungen",{"$nulls":5},{"$f":"IF(ISBLANK(Data!D219),\"\",Data!D219)","v":""}]
[{"$nulls":5},"Anlage bewilligt"]
[{"$nulls":5},"Anlage bewilligt mit Massnahmen"]
[null,null,"EEA",{"$nulls":17},"Bemerkungen",{"$nulls":5},{"$f":"IF(ISBLANK(Data!D222),\"\",Data!D222)","v":""},{"$nulls":19},"cos ɸ",null,null,null,{"$f":"IF(ISBLANK(Data!D225),\"\",Data!D225)","v":""}]
[{"$nulls":5},"Anlage bewilligt",{"$nulls":40},"Andere"]
[{"$nulls":5},"Anlage bewilligt mit Massnahmen",{"$nulls":40},{"$f":"IF(ISBLANK(Data!D226),\"\",Data!D226)","v":""}]
[null,null,"Anlagen mit Netzrückwirkungen",{"$nulls":17},"Bemerkungen",{"$nulls":5},{"$f":"IF(ISBLANK(Data!D227),\"\",Data!D227)","v":""}]
[{"$nulls":5},"Anlage bewilligt"]
[{"$nulls":5},"Anlage bewilligt mit Massnahmen"]
[null,null,"Energiespeicher",{"$nulls":17},"Bemerkungen",{"$nulls":5},{"$f":"IF(ISBLANK(Data!D230),\"\",Data!D230)","v":""}]
[{"$nulls":5},"Anlage bewilligt"]
[{"$nulls":5},"Anlage bewilligt mit Massnahmen"]
[null,null,"Ladestationen für Elektrofahrzeuge",{"$nulls":17},"Bemerkungen",{"$nulls":5},{"$f":"IF(ISBLANK(Data!D233),\"\",Data!D233)","v":""}]
[{"$nulls":5},"Anlage bewilligt"]
[{"$nulls":5},"Anlage bewilligt mit Massnahmen"]
[null,null,"Weitere Bemerkungen des VNB",{"$nulls":17},"Rundsteuerfrequenz VNB",{"$nulls":18},{"$f":"IF(ISBLANK(Data!D236),\"\",Data!D236)","v":""},{"$nulls":6},"Hz"]
[{"$nulls":20},"Kurzschlussleistung am Verknüpfungspunkt SkV",{"$nulls":18},{"$f":"IF(ISBLANK(Data!D237),\"\",Data!D237)","v":""},{"$nulls":6},"kVA"]
[{"$nulls":20},"Anlagenleistung SA",{"$nulls":18},{"$f":"IF(ISBLANK(Data!D238),\"\",Data!D238)","v":""},{"$nulls":6},"kVA"]
[{"$nulls":20},{"$f":"IF(ISBLANK(Data!D239),\"\",Data!D239)","v":""}]
[]
[]
[]
[]
[null,null,null,"Die \"Werkvorschriften WV CH\" und die \"Technischen Regeln zur Beurteilung von Netzrückwirkungen DACHCZ\" müssen am Verknüpfungspunkt eingehalten werden. Das Anschlussgesuch hat eine Gültigkeit für 1 Jahr."]
[]
[null,null,null,"Unterschrift VNB"]
[{"$nulls":7},{"$f":"IF(ISBLANK(Data!D240),\"\",Data!D240)","v":""},{"$nulls":26},{"$f":"IF(ISBLANK(Data!D241),\"\",Data!D241)","v":""}]
[null,null,null,"Datum",{"$nulls":24},"Unterschrift"]
{"$rows_empty":16}
[{"$nulls":8},"VSE V-2019-de",{"$nulls":51},"Seite 3 von 3"]

{"sheet":"Data","index":1,"n_rows":242,"n_cols":9,"rows_kept":242,"cut":false,"hidden":false,"merged":[]}
[]
[null,"Schnittstelle",null,"VSE_TAG_2019_100",null,null,"VSE 06.08.2019 v 1.03",null,"Legende"]
[]
[null,"Bezeichnung",null,"Daten",null,"Hauptblock","Block innerhalb Hauptblock",null,"Daten: String"]
[null,"Netzbetreiberin (VNB)",{"$nulls":4},"Netzbetreiberin",null,"Gelbe Felder = Checkboxen"]
[null,"VNB Objekt-Nr",{"$nulls":4},"Netzbetreiberin",null,"FALSCH = Häcken nicht gesetzt"]
[null,"Meldungs-Nr. VNB",{"$nulls":4},"Netzbetreiberin",null,"WAHR = Häcken gesetzt"]
[null,"Meldungs-Nr. VNB 2",{"$nulls":4},"Netzbetreiberin"]
[null,"de",null,false,null,"Allgemeine Angaben","Allgemeine Angaben Sprache"]
[null,"fr",null,false,null,"Allgemeine Angaben","Allgemeine Angaben Sprache"]
[null,"it",null,false,null,"Allgemeine Angaben","Allgemeine Angaben Sprache"]
[null,"Name",null,null,null,"Allgemeine Angaben","Name und Anschrift des Eigentümers"]
[null,"Vorname",null,null,null,"Allgemeine Angaben","Name und Anschrift des Eigentümers"]
[null,"Strasse",null,null,null,"Allgemeine Angaben","Name und Anschrift des Eigentümers"]
[null,"Nr.",null,null,null,"Allgemeine Angaben","Name und Anschrift des Eigentümers"]
[null,"PLZ",null,null,null,"Allgemeine Angaben","Name und Anschrift des Eigentümers"]
[null,"Ort",null,null,null,"Allgemeine Angaben","Name und Anschrift des Eigentümers"]
[null,"Tel.",null,null,null,"Allgemeine Angaben","Name und Anschrift des Eigentümers"]
[null,"E-Mail",null,null,null,"Allgemeine Angaben","Name und Anschrift des Eigentümers"]
[null,"Strasse",null,null,null,"Allgemeine Angaben","Standort der Anlage"]
[null,"Nr.",null,null,null,"Allgemeine Angaben","Standort der Anlage"]
[null,"PLZ",null,null,null,"Allgemeine Angaben","Standort der Anlage"]
[null,"Ort",null,null,null,"Allgemeine Angaben","Standort der Anlage"]
[null,"Gebäudeart",null,null,null,"Allgemeine Angaben","Standort der Anlage"]
[null,"Gemeinde",null,null,null,"Allgemeine Angaben","Standort der Anlage"]
[null,"Parzellen Nr.",null,null,null,"Allgemeine Angaben","Standort der Anlage"]
[null,"Gebäudeart neu",null,false,null,"Allgemeine Angaben","Standort der Anlage"]
[null,"Gebäudeart bestehend",null,false,null,"Allgemeine Angaben","Standort der Anlage"]
[null,"Gebäudeart Andere",null,false,null,"Allgemeine Angaben","Standort der Anlage"]
[null,"Gebäudeart Andere Text",null,null,null,"Allgemeine Angaben","Standort der Anlage"]
[null,"Zähler-Nr.",null,null,null,"Allgemeine Angaben","Standort der Anlage"]
[null,"Netzanschluss (HAK)",null,null,null,"Allgemeine Angaben","Standort der Anlage"]
[null,"HAK neu",null,false,null,"Allgemeine Angaben","Standort der Anlage"]
[null,"HAK bestehend",null,false,null,"Allgemeine Angaben","Standort der Anlage"]
[null,"de",null,false,null,"Allgemeine Angaben","Name und Anschrift des einreichenden Unternehmens Sprache"]
[null,"fr",null,false,null,"Allgemeine Angaben","Name und Anschrift des einreichenden Unternehmens Sprache"]
[null,"it",null,false,null,"Allgemeine Angaben","Name und Anschrift des einreichenden Unternehmens Sprache"]
[null,"Name",null,null,null,"Allgemeine Angaben","Name und Anschrift des einreichenden Unternehmens"]
[null,"Vorname",null,null,null,"Allgemeine Angaben","Name und Anschrift des einreichenden Unternehmens"]
[null,"Strasse",null,null,null,"Allgemeine Angaben","Name und Anschrift des einreichenden Unternehmens"]
[null,"Nr.",null,null,null,"Allgemeine Angaben","Name und Anschrift des einreichenden Unternehmens"]
[null,"PLZ",null,null,null,"Allgemeine Angaben","Name und Anschrift des einreichenden Unternehmens"]
[null,"Ort",null,null,null,"Allgemeine Angaben","Name und Anschrift des einreichenden Unternehmens"]
[null,"Tel.",null,null,null,"Allgemeine Angaben","Name und Anschrift des einreichenden Unternehmens"]
[null,"E-Mail",null,null,null,"Allgemeine Angaben","Name und Anschrift des einreichenden Unternehmens"]
[null,"Sachbearbeiter/-in",null,null,null,"Allgemeine Angaben","Name und Anschrift des einreichenden Unternehmens"]
[null,"Voraussichtliche Inbetriebnahme",null,null,null,"Allgemeine Angaben","Name und Anschrift des einreichenden Unternehmens"]
[null,"Elektrische Wärme/WP",null,false,null,"Allgemeine Angaben","Anschlussgesuch für folgende Geräte"]
[null,"EEA",null,false,null,"Allgemeine Angaben","Anschlussgesuch für folgende Geräte"]
[null,"Anlage mit Netzrückwirkung",null,false,null,"Allgemeine Angaben","Anschlussgesuch für folgende Geräte"]
[null,"Energiespeicher",null,false,null,"Allgemeine Angaben","Anschlussgesuch für folgende Geräte"]
[null,"Ladestation Elektrofahrzeuge",null,false,null,"Allgemeine Angaben","Anschlussgesuch für folgende Geräte"]
[null,"Neuanlage",null,false,null,"Elektrische Wärme / Wärmepumpe (WP)","Elektrische Wärme / Wärmepumpe (WP)"]
[null,"Änderung / Erweiterung",null,false,null,"Elektrische Wärme / Wärmepumpe (WP)","Elektrische Wärme / Wärmepumpe (WP)"]
[null,"Kantonale Genehmigung vorhanden",null,false,null,"Elektrische Wärme / Wärmepumpe (WP)","Elektrische Wärme / Wärmepumpe (WP)"]
[null,"Art des Geräts / Anlage",null,null,null,"Elektrische Wärme / Wärmepumpe (WP)","Elektrische Wärme / Wärmepumpe (WP)"]
[null,"Gerätehersteller",null,null,null,"Elektrische Wärme / Wärmepumpe (WP)","Elektrische Wärme / Wärmepumpe (WP)"]
[null,"Gerätetyp",null,null,null,"Elektrische Wärme / Wärmepumpe (WP)","Elektrische Wärme / Wärmepumpe (WP)"]
[null,"monovalent",null,false,null,"Elektrische Wärme / Wärmepumpe (WP)","Elektrische Wärme / Wärmepumpe (WP)"]
[null,"bivalent",null,false,null,"Elektrische Wärme / Wärmepumpe (WP)","Elektrische Wärme / Wärmepumpe (WP)"]
[null,"3x400V",null,false,null,"Elektrische Wärme / Wärmepumpe (WP)","Gerätedaten Seite AC"]
[null,"Nennstrom Gerät",null,null,null,"Elektrische Wärme / Wärmepumpe (WP)","Gerätedaten Seite AC"]
[null,"Nennleistung Gerät",null,null,null,"Elektrische Wärme / Wärmepumpe (WP)","Gerätedaten Seite AC"]
[null,"1x230V",null,false,null,"Elektrische Wärme / Wärmepumpe (WP)","Gerätedaten Seite AC"]
[null,"Anlaufstrom Gerät",null,null,null,"Elektrische Wärme / Wärmepumpe (WP)","Gerätedaten Seite AC"]
[null,"Nennleistung Total",null,null,null,"Elektrische Wärme / Wärmepumpe (WP)","Gerätedaten Seite AC"]
[null,"Andere",null,false,null,"Elektrische Wärme / Wärmepumpe (WP)","Gerätedaten Seite AC"]
[null,"Anzahl Geräte",null,null,null,"Elektrische Wärme / Wärmepumpe (WP)","Gerätedaten Seite AC"]
[null,"Spitzenleistung Total",null,null,null,"Elektrische Wärme / Wärmepumpe (WP)","Gerätedaten Seite AC"]
[null,"Direktanlauf",null,false,null,"Elektrische Wärme / Wärmepumpe (WP)","Spezifikation"]
[null,"Widerstandsanlasser",null,false,null,"Elektrische Wärme / Wärmepumpe (WP)","Spezifikation"]
[null,"Inverter",null,false,null,"Elektrische Wärme / Wärmepumpe (WP)","Spezifikation"]
[null,"Frequenzumformer",null,false,null,"Elektrische Wärme / Wärmepumpe (WP)","Spezifikation"]
[null,"Sanftanlasser",null,false,null,"Elektrische Wärme / Wärmepumpe (WP)","Spezifikation"]
[null,"Sanftanlasser Leistung",null,null,null,"Elektrische Wärme / Wärmepumpe (WP)","Spezifikation"]
[null,"Nein",null,false,null,"Elektrische Wärme / Wärmepumpe (WP)","Spezifikation"]
[null,"Ja",null,false,null,"Elektrische Wärme / Wärmepumpe (WP)","Spezifikation"]
[null,"Sole / Wasser",null,false,null,"Elektrische Wärme / Wärmepumpe (WP)","Spezifikation"]
[null,"Wasser / Wasser",null,false,null,"Elektrische Wärme / Wärmepumpe (WP)","Spezifikation"]
[null,"Luft / Luft",null,false,null,"Elektrische Wärme / Wärmepumpe (WP)","Spezifikation"]
[null,"Luft / Wasser",null,false,null,"Elektrische Wärme / Wärmepumpe (WP)","Spezifikation"]
[null,"elektrisch",null,false,null,"Elektrische Wärme / Wärmepumpe (WP)","Spezifikation"]
[null,"Wärmepumpenboiler",null,false,null,"Elektrische Wärme / Wärmepumpe (WP)","Spezifikation"]
[null,"Wärmepumpe",null,false,null,"Elektrische Wärme / Wärmepumpe (WP)","Spezifikation"]
[null,"Sonnenkollektoren",null,false,null,"Elektrische Wärme / Wärmepumpe (WP)","Spezifikation"]
[null,"Anzahl",null,null,null,"Elektrische Wärme / Wärmepumpe (WP)","Spezifikation"]
[null,"Inhalt",null,null,null,"Elektrische Wärme / Wärmepumpe (WP)","Spezifikation"]
[null,"Gesamtleistung",null,null,null,"Elektrische Wärme / Wärmepumpe (WP)","Spezifikation"]
[null,"Neuanlage",null,false,null,"Energieerzeugungsanlagen (EEA)","Energieerzeugungsanlagen (EEA)"]
[null,"Änderung / Erweiterung",null,false,null,"Energieerzeugungsanlagen (EEA)","Energieerzeugungsanlagen (EEA)"]
[null,"Art des Geräts / Anlage",null,null,null,"Energieerzeugungsanlagen (EEA)","Energieerzeugungsanlagen (EEA)"]
[null,"Gerätehersteller",null,null,null,"Energieerzeugungsanlagen (EEA)","Energieerzeugungsanlagen (EEA)"]
[null,"Netzverbund",null,false,null,"Energieerzeugungsanlagen (EEA)","Energieerzeugungsanlagen (EEA)"]
[null,"Inselbetrieb",null,false,null,"Energieerzeugungsanlagen (EEA)","Energieerzeugungsanlagen (EEA)"]
[null,"Notstromanlage",null,false,null,"Energieerzeugungsanlagen (EEA)","Energieerzeugungsanlagen (EEA)"]
[null,"Gerätetyp",null,null,null,"Energieerzeugungsanlagen (EEA)","Energieerzeugungsanlagen (EEA)"]
[null,"Eigenverbrauch Nein",null,false,null,"Energieerzeugungsanlagen (EEA)","Energieerzeugungsanlagen (EEA)"]
[null,"Eigenverbrauch Ja",null,false,null,"Energieerzeugungsanlagen (EEA)","Energieerzeugungsanlagen (EEA)"]
[null,"Eigenverbrauch wenn ja einzel",null,false,null,"Energieerzeugungsanlagen (EEA)","Energieerzeugungsanlagen (EEA)"]
[null,"Eigenverbrauch wenn ja mehrere",null,false,null,"Energieerzeugungsanlagen (EEA)","Energieerzeugungsanlagen (EEA)"]
[null,"ZEV Nein",null,false,null,"Energieerzeugungsanlagen (EEA)","Energieerzeugungsanlagen (EEA)"]
[null,"ZEV Ja",null,false,null,"Energieerzeugungsanlagen (EEA)","Energieerzeugungsanlagen (EEA)"]
[null,"Vorsicherung des VNB ZEV-Zählers",null,null,null,"Energieerzeugungsanlagen (EEA)","Energieerzeugungsanlagen (EEA)"]
[null,"Notstrom mit Netz verbunden Nein",null,false,null,"Energieerzeugungsanlagen (EEA)","Energieerzeugungsanlagen (EEA)"]
[null,"Notstrom mit Netz verbunden Ja",null,false,null,"Energieerzeugungsanlagen (EEA)","Energieerzeugungsanlagen (EEA)"]
[null,"Umschaltung Netzverbund Nein",null,false,null,"Energieerzeugungsanlagen (EEA)","Energieerzeugungsanlagen (EEA)"]
[null,"Umschaltung Netzverbund Ja",null,false,null,"Energieerzeugungsanlagen (EEA)","Energieerzeugungsanlagen (EEA)"]
[null,"Teilnahme SDL Nein",null,false,null,"Energieerzeugungsanlagen (EEA)","Energieerzeugungsanlagen (EEA)"]
[null,"Teilnahme SDL Ja",null,false,null,"Energieerzeugungsanlagen (EEA)","Energieerzeugungsanlagen (EEA)"]
[null,"Anbieter",null,null,null,"Energieerzeugungsanlagen (EEA)","Energieerzeugungsanlagen (EEA)"]
[null,"3x400V",null,false,null,"Energieerzeugungsanlagen (EEA)","Gerätedaten Seite AC"]
[null,"Anzahl Geräte",null,null,null,"Energieerzeugungsanlagen (EEA)","Gerätedaten Seite AC"]
[null,"Nennleistung Gerät",null,null,null,"Energieerzeugungsanlagen (EEA)","Gerätedaten Seite AC"]
[null,"1x230V",null,false,null,"Energieerzeugungsanlagen (EEA)","Gerätedaten Seite AC"]
[null,"Nennleistung Total",null,null,null,"Energieerzeugungsanlagen (EEA)","Gerätedaten Seite AC"]
[null,"Spannung Andere",null,false,null,"Energieerzeugungsanlagen (EEA)","Gerätedaten Seite AC"]
[null,"Anschluss Andere",null,null,null,"Energieerzeugungsanlagen (EEA)","Gerätedaten Seite AC"]
[null,"*Max. Leistungsabgabe ans Netz",null,null,null,"Energieerzeugungsanlagen (EEA)","Gerätedaten Seite AC"]
[null,"Einspeisebegrenzung Nein",null,false,null,"Energieerzeugungsanlagen (EEA)","Gerätedaten Seite AC"]
[null,"Einspeisebegrenzung Ja",null,false,null,"Energieerzeugungsanlagen (EEA)","Gerätedaten Seite AC"]
[null,"cos ɸ im Betrieb",null,null,null,"Energieerzeugungsanlagen (EEA)","Gerätedaten Seite AC"]
[null,"Leistung Total",null,null,null,"Energieerzeugungsanlagen (EEA)","Gerätedaten Seite AC"]
[null,"Sonne (PV)",null,false,null,"Energieerzeugungsanlagen (EEA)","Energieträger"]
[null,"Wasser",null,false,null,"Energieerzeugungsanlagen (EEA)","Energieträger"]
[null,"Wind",null,false,null,"Energieerzeugungsanlagen (EEA)","Energieträger"]
[null,"WWK Anlage / BHKW",null,false,null,"Energieerzeugungsanlagen (EEA)","Energieträger"]
[null,"Biogas",null,false,null,"Energieerzeugungsanlagen (EEA)","Energieträger"]
[null,"Andere",null,false,null,"Energieerzeugungsanlagen (EEA)","Energieträger"]
[null,"Andere Text",null,null,null,"Energieerzeugungsanlagen (EEA)","Energieträger"]
[null,"Neuanlage",null,false,null,"Anlagen mit Netzrückwirkungen","Anlagen mit Netzrückwirkungen"]
[null,"Änderung / Erweiterung",null,false,null,"Anlagen mit Netzrückwirkungen","Anlagen mit Netzrückwirkungen"]
[null,"Art des Gerätes / Anlage",null,null,null,"Anlagen mit Netzrückwirkungen","Anlagen mit Netzrückwirkungen"]
[null,"Gerätehersteller",null,null,null,"Anlagen mit Netzrückwirkungen","Anlagen mit Netzrückwirkungen"]
[null,"Gerätetyp",null,null,null,"Anlagen mit Netzrückwirkungen","Anlagen mit Netzrückwirkungen"]
[null,"3x400V",null,false,null,"Anlagen mit Netzrückwirkungen","Gerätedaten Seite AC"]
[null,"Nennstrom Gerät",null,null,null,"Anlagen mit Netzrückwirkungen","Gerätedaten Seite AC"]
[null,"Nennleistung Gerät",null,null,null,"Anlagen mit Netzrückwirkungen","Gerätedaten Seite AC"]
[null,"1x230V",null,false,null,"Anlagen mit Netzrückwirkungen","Gerätedaten Seite AC"]
[null,"Anlaufstrom Gerät (10ms)",null,null,null,"Anlagen mit Netzrückwirkungen","Gerätedaten Seite AC"]
[null,"Nennleistung Total",null,null,null,"Anlagen mit Netzrückwirkungen","Gerätedaten Seite AC"]
[null,"Spannung Andere",null,false,null,"Anlagen mit Netzrückwirkungen","Gerätedaten Seite AC"]
[null,"Anzahl Geräte",null,null,null,"Anlagen mit Netzrückwirkungen","Gerätedaten Seite AC"]
[null,"Spitzenleistung Total",null,null,null,"Anlagen mit Netzrückwirkungen","Gerätedaten Seite AC"]
[null,"Anz. Anläufe pro Min.",null,null,null,"Anlagen mit Netzrückwirkungen","Gerätedaten Seite AC"]
[null,"cos ɸ im Betrieb",null,null,null,"Anlagen mit Netzrückwirkungen","Gerätedaten Seite AC"]
[null,"Direktanlauf",null,false,null,"Anlagen mit Netzrückwirkungen","Spezifikationen"]
[null,"Widerstandsanlasser",null,false,null,"Anlagen mit Netzrückwirkungen","Spezifikationen"]
[null,"Inverter",null,false,null,"Anlagen mit Netzrückwirkungen","Spezifikationen"]
[null,"Sanftanlasser",null,false,null,"Anlagen mit Netzrückwirkungen","Spezifikationen"]
[null,"Frequenzumformer",null,false,null,"Anlagen mit Netzrückwirkungen","Spezifikationen"]
[null,"weitere Anlaufhilfen",null,false,null,"Anlagen mit Netzrückwirkungen","Spezifikationen"]
[null,"Ohne",null,false,null,"Anlagen mit Netzrückwirkungen","Spezifikationen"]
[null,"Bestehend",null,false,null,"Anlagen mit Netzrückwirkungen","Spezifikationen"]
[null,"Neuanlage",null,false,null,"Anlagen mit Netzrückwirkungen","Spezifikationen"]
[null,"Neuanlage",null,false,null,"Energiespeicher","Energiespeicher"]
[null,"Änderung / Erweiterung",null,false,null,"Energiespeicher","Energiespeicher"]
[null,"Art des Gerätes / Anlage",null,null,null,"Energiespeicher","Energiespeicher"]
[null,"Gerätehersteller",null,null,null,"Energiespeicher","Energiespeicher"]
[null,"Gerätetyp",null,null,null,"Energiespeicher","Energiespeicher"]
[null,"Netzverbund",null,false,null,"Energiespeicher","Energiespeicher"]
[null,"Inselbetrieb",null,false,null,"Energiespeicher","Energiespeicher"]
[null,"Notstromfähig",null,false,null,"Energiespeicher","Energiespeicher"]
[null,"Mit Netz verbunden Nein",null,false,null,"Energiespeicher","Energiespeicher"]
[null,"Mit Netz verbunden Ja",null,false,null,"Energiespeicher","Energiespeicher"]
[null,"Umschaltung Nein",null,false,null,"Energiespeicher","Energiespeicher"]
[null,"Umschaltung Ja",null,false,null,"Energiespeicher","Energiespeicher"]
[null,"3x400V",null,false,null,"Energiespeicher","Gerätedaten Seite AC"]
[null,"Nennstrom Gerät",null,null,null,"Energiespeicher","Gerätedaten Seite AC"]
[null,"Nennleistung Gerät",null,null,null,"Energiespeicher","Gerätedaten Seite AC"]
[null,"1x230V",null,false,null,"Energiespeicher","Gerätedaten Seite AC"]
[null,"Anzahl Geräte",null,null,null,"Energiespeicher","Gerätedaten Seite AC"]
[null,"Nennleistung Total",null,null,null,"Energiespeicher","Gerätedaten Seite AC"]
[null,"nur DC",null,false,null,"Energiespeicher","Gerätedaten Seite AC"]
[null,"Spitzenleistung Total",null,null,null,"Energiespeicher","Gerätedaten Seite AC"]
[null,"cos ɸ im Betrieb",null,null,null,"Energiespeicher","Gerätedaten Seite AC"]
[null,"AC (im AC Teil der Installation)",null,false,null,"Energiespeicher","Spezifikationen"]
[null,"DC (im DC Teil der Installation)",null,false,null,"Energiespeicher","Spezifikationen"]
[null,"Elektrische Leistung (Systemleistung)",null,null,null,"Energiespeicher","Spezifikationen"]
[null,"Speicherkapazität",null,null,null,"Energiespeicher","Spezifikationen"]
[null,"keine Ladung des Speichers aus dem Verteilnetz",null,false,null,"Energiespeicher","Spezifikationen"]
[null,"keine Entladung des Speichers ins Verteilnetz",null,false,null,"Energiespeicher","Spezifikationen"]
[null,"Regelbare Leistung durch",null,false,null,"Energiespeicher","Spezifikationen"]
[null,"Regelbare Leistung durch VNB",null,false,null,"Energiespeicher","Spezifikationen"]
[null,"Regelbare Leistung durch Betreiber",null,false,null,"Energiespeicher","Spezifikationen"]
[null,"Teilnahme an der Systemdienstleistung",null,false,null,"Energiespeicher","Spezifikationen"]
[null,"Anbieter",null,null,null,"Energiespeicher","Spezifikationen"]
[null,"Schnittstelle Speicher zum VNB vorhanden",null,false,null,"Energiespeicher","Spezifikationen"]
[null,"andere Betriebsart -> gemäss Beilage",null,false,null,"Energiespeicher","Spezifikationen"]
[null,"Neuanlage",null,false,null,"Ladestation für Elektrofahrzeuge","Ladestation für Elektrofahrzeuge"]
[null,"Änderung / Erweiterung",null,false,null,"Ladestation für Elektrofahrzeuge","Ladestation für Elektrofahrzeuge"]
[null,"Art des Gerätes / Anlage",null,null,null,"Ladestation für Elektrofahrzeuge","Ladestation für Elektrofahrzeuge"]
[null,"Gerätehersteller",null,null,null,"Ladestation für Elektrofahrzeuge","Ladestation für Elektrofahrzeuge"]
[null,"Gerätetyp",null,null,null,"Ladestation für Elektrofahrzeuge","Ladestation für Elektrofahrzeuge"]
[null,"Ladung Kabel",null,false,null,"Ladestation für Elektrofahrzeuge","Ladestation für Elektrofahrzeuge"]
[null,"Ladung induktiv",null,false,null,"Ladestation für Elektrofahrzeuge","Ladestation für Elektrofahrzeuge"]
[null,"3x400V",null,false,null,"Ladestation für Elektrofahrzeuge","Gerätedaten Seite AC"]
[null,"Nennstrom Gerät",null,null,null,"Ladestation für Elektrofahrzeuge","Gerätedaten Seite AC"]
[null,"Nennleistung Gerät",null,null,null,"Ladestation für Elektrofahrzeuge","Gerätedaten Seite AC"]
[null,"1x230V",null,false,null,"Ladestation für Elektrofahrzeuge","Gerätedaten Seite AC"]
[null,"Anzahl Geräte",null,null,null,"Ladestation für Elektrofahrzeuge","Gerätedaten Seite AC"]
[null,"Nennleistung Total",null,null,null,"Ladestation für Elektrofahrzeuge","Gerätedaten Seite AC"]
[null,"Spitzenleistung Total",null,null,null,"Ladestation für Elektrofahrzeuge","Gerätedaten Seite AC"]
[null,"cos ɸ im Betrieb",null,null,null,"Ladestation für Elektrofahrzeuge","Gerätedaten Seite AC"]
[null,"AC Ladung des Fahrzeuges",null,false,null,"Ladestation für Elektrofahrzeuge","Spezifikationen"]
[null,"DC Ladung des Fahrzeuges",null,false,null,"Ladestation für Elektrofahrzeuge","Spezifikationen"]
[null,"Max. Netzentnahmeleistung",null,null,null,"Ladestation für Elektrofahrzeuge","Spezifikationen"]
[null,"Max. Netzeinspeiseleistung",null,null,null,"Ladestation für Elektrofahrzeuge","Spezifikationen"]
[null,"Regelbare Leistung durch VNB",null,null,null,"Ladestation für Elektrofahrzeuge","Spezifikationen"]
[null,"bis",null,null,null,"Ladestation für Elektrofahrzeuge","Spezifikationen"]
[null,"Regelbare Leistung durch Betreiber",null,null,null,"Ladestation für Elektrofahrzeuge","Spezifikationen"]
[null,"bis",null,null,null,"Ladestation für Elektrofahrzeuge","Spezifikationen"]
[null,"Wirkleistung steuerbar Nein",null,false,null,"Ladestation für Elektrofahrzeuge","Spezifikationen"]
[null,"Wirkleistung steuerbar Ja",null,false,null,"Ladestation für Elektrofahrzeuge","Spezifikationen"]
[null,"Schnittstelle Nein",null,false,null,"Ladestation für Elektrofahrzeuge","Spezifikationen"]
[null,"Schnittstelle Ja",null,false,null,"Ladestation für Elektrofahrzeuge","Spezifikationen"]
[null,"Bemerkungen des einreichenden Unternehmens",null,null,null,"Weitere allgemeine Angaben","Bemerkungen des einreichenden Unternehmens"]
[null,"Datum",null,null,null,"Weitere allgemeine Angaben","Datum"]
[null,"Unterschrift",null,null,null,"Weitere allgemeine Angaben","Unterschrift"]
[null,"Bemerkungen",null,null,null,"Entscheid VNB","Elektrische Wärme / Wp"]
[null,"Anlage bewilligt",null,false,null,"Entscheid VNB","Elektrische Wärme / Wp"]
[null,"Anlage bewilligt mit Massnahmen",null,false,null,"Entscheid VNB","Elektrische Wärme / Wp"]
[null,"Bemerkungen",null,null,null,"Entscheid VNB","EEA"]
[null,"Anlage bewilligt",null,false,null,"Entscheid VNB","EEA"]
[null,"Anlage bewilligt mit Massnahmen",null,false,null,"Entscheid VNB","EEA"]
[null,"cos ɸ",null,null,null,"Entscheid VNB","EEA"]
[null,"Andere",null,null,null,"Entscheid VNB","EEA"]
[null,"Bemerkungen",null,null,null,"Entscheid VNB","Anlagen mit Netzrückwirkungen"]
[null,"Anlage bewilligt",null,false,null,"Entscheid VNB","Anlagen mit Netzrückwirkungen"]
[null,"Anlage bewilligt mit Massnahmen",null,false,null,"Entscheid VNB","Anlagen mit Netzrückwirkungen"]
[null,"Bemerkungen",null,null,null,"Entscheid VNB","Energiespeicher"]
[null,"Anlage bewilligt",null,false,null,"Entscheid VNB","Energiespeicher"]
[null,"Anlage bewilligt mit Massnahmen",null,false,null,"Entscheid VNB","Energiespeicher"]
[null,"Bemerkungen",null,null,null,"Entscheid VNB","Ladestationen für Elektrofahrzeuge"]
[null,"Anlage bewilligt",null,false,null,"Entscheid VNB","Ladestationen für Elektrofahrzeuge"]
[null,"Anlage bewilligt mit Massnahmen",null,false,null,"Entscheid VNB","Ladestationen für Elektrofahrzeuge"]
[null,"Rundsteuerfrequenz VNB",null,null,null,"Entscheid VNB","Ladestationen für Elektrofahrzeuge"]
[null,"Kurschlussleistung am Verknüpfungspunkt SkV",null,null,null,"Entscheid VNB","Ladestationen für Elektrofahrzeuge"]
[null,"Anlagenleistung SA",null,null,null,"Entscheid VNB","Ladestationen für Elektrofahrzeuge"]
[null,"weitere Bemerkungen",null,null,null,"Entscheid VNB","weitere Bemerkungen"]
[null,"Datum",null,null,null,"Entscheid VNB","Unterschrift VNB"]
[null,"Unterschrift",null,null,null,"Entscheid VNB","Unterschrift VNB"]
[null,"EOF"]